bitfinex-derivatives/quotes_BTCF0:USTF0_20210108
["timestamp","ask_amount","ask_price","bid_price","bid_amount"]
[1610144322635,0.51300034,39858.0,39857.0,0.03096147]
[1610144323134,0.51300034,39858.0,39854.0,0.0309683]
[1610144323335,0.51300034,39858.0,39857.0,0.03096803]
[1610144323537,0.51300034,39858.0,39855.0,0.0309683]
[1610144323836,0.51300034,39858.0,39857.0,0.03096826]
[1610144324235,0.51300034,39858.0,39856.0,0.03096808]
[1610144324437,0.51300034,39858.0,39857.0,0.03096905]
[1610144325237,0.51300034,39858.0,39857.0,0.00029279]
[1610144326743,0.51300034,39858.0,39854.0,0.00029282]
[1610144326941,0.51300034,39858.0,39857.0,0.00029282]
[1610144327441,3.3918,39855.0,39854.0,0.00029282]
[1610144327742,3.3918,39855.0,39854.0,0.00029285]
[1610144328540,3.52812608,39855.0,39854.0,0.00029285]
[1610144332542,3.52812608,39855.0,39853.0,0.2841]
[1610144332742,3.52812608,39855.0,39854.0,0.00029309]
[1610144338952,3.97804019,39855.0,39854.0,0.00029309]
[1610144340255,4.88583016,39855.0,39854.0,0.00029309]
[1610144340556,4.88583016,39855.0,39853.0,0.2841]
[1610144340754,1.49403016,39855.0,39853.0,0.2841]
[1610144341054,5.32965721,39854.0,39853.0,0.2841]
[1610144342956,5.32965721,39854.0,39853.0,0.28439319]
[1610144343260,6.53999455,39854.0,39853.0,0.28439319]
[1610144343556,5.98790006,39854.0,39853.0,0.28439319]
[1610144344358,6.54000634,39854.0,39853.0,0.28439319]
[1610144345059,6.54000634,39854.0,39853.0,0.28285945]
[1610144345259,6.54000634,39854.0,39853.0,0.28256626]
[1610144345659,7.28688387,39854.0,39853.0,0.28256626]
[1610144345860,7.00538387,39854.0,39853.0,0.28256626]
[1610144346062,6.25850634,39854.0,39853.0,0.28285949]
[1610144346961,5.70640006,39854.0,39853.0,0.28285949]
[1610144347260,2.01550006,39854.0,39853.0,0.28285949]
[1610144347460,2.01550006,39854.0,39853.0,0.28256626]
[1610144347860,1.35725721,39854.0,39853.0,0.28256626]
[1610144349265,1.78735721,39854.0,39853.0,0.28256626]
[1610144349668,2.44357138,39854.0,39853.0,0.28256626]
[1610144352771,2.51987138,39854.0,39853.0,0.28256626]
[1610144355276,2.5201784,39854.0,39853.0,0.28256626]
[1610144355976,3.26441937,39854.0,39853.0,0.28256626]
[1610144356876,3.26441937,39854.0,39853.0,0.28103201]
[1610144357076,3.26441937,39854.0,39853.0,0.20431751]
[1610144357276,4.33431937,39854.0,39756.0,2.33033061]
[1610144357476,3.8862,39812.0,39796.0,0.10767]
[1610144357878,0.12325,39813.0,39797.0,0.00029327]
[1610144358577,0.0747,39797.0,39779.0,0.00029333]
[1610144358780,0.0747,39797.0,39769.0,0.09445]
[1610144358781,0.13632608,39780.0,39769.0,0.09445]
[1610144359277,0.13632608,39780.0,39770.0,0.0002934]
[1610144359478,3.3501,39771.0,39770.0,0.0002934]
[1610144359877,3.45762,39771.0,39770.0,0.0002934]
[1610144360078,3.45762,39771.0,39753.0,0.03103857]
[1610144360278,3.53372,39771.0,39749.0,4.1377]
[1610144360478,0.02,39769.0,39749.0,4.1377]
[1610144360678,0.13632608,39750.0,39737.0,0.13632608]
[1610144361789,0.0764,39749.0,39737.0,0.13632608]
[1610144362781,0.0764,39749.0,39743.0,0.13632608]
[1610144363482,0.0764,39749.0,39733.0,3.9244]
[1610144364284,0.0764,39749.0,39729.0,0.10386]
[1610144364485,0.0764,39749.0,39735.0,3.251]
[1610144364684,0.0764,39749.0,39736.0,0.13632608]
[1610144365086,0.10011,39754.0,39736.0,0.13632608]
[1610144365886,0.10011,39754.0,39748.0,3.4965]
[1610144366086,0.10752,39771.0,39748.0,3.4965]
[1610144366785,0.15632608,39769.0,39768.0,0.13632608]
[1610144367487,0.15632608,39769.0,39748.0,3.4965]
[1610144367990,0.26260608,39769.0,39748.0,3.4965]
[1610144368188,0.26260608,39769.0,39729.0,0.10386]
[1610144368488,0.26260608,39769.0,39732.0,3.1295]
[1610144368688,0.12628,39769.0,39758.0,0.13632608]
[1610144369290,0.12628,39769.0,39740.0,0.10376]
[1610144369990,0.12628,39769.0,39732.0,3.25103]
[1610144370791,0.12628,39769.0,39742.0,0.13632608]
[1610144372492,0.12628,39769.0,39732.0,3.25103]
[1610144372692,0.13632608,39733.0,39732.0,3.38735608]
[1610144372894,0.13632608,39733.0,39732.0,0.25785608]
[1610144376899,0.13632608,39733.0,39732.0,4.21055608]
[1610144377601,0.13632608,39733.0,39732.0,0.25785608]
[1610144378014,0.12628,39769.0,39751.0,3.1353]
[1610144378901,0.12628,39769.0,39768.0,0.13632608]
[1610144379203,0.12628,39769.0,39768.0,4.02152608]
[1610144381503,0.02,39769.0,39768.0,4.02152608]
[1610144386914,0.02,39769.0,39768.0,0.13661937]
[1610144387114,0.02,39769.0,39768.0,0.13632608]
[1610144389218,0.02,39769.0,39765.0,0.10086]
[1610144389418,0.02,39769.0,39753.0,0.10888]
[1610144389720,0.02,39769.0,39752.0,3.9842]
[1610144389918,0.02,39769.0,39712.0,2.39397086]
[1610144390121,0.02,39769.0,39758.0,3.8896]
[1610144390418,0.13632608,39784.0,39758.0,4.01719]
[1610144390821,0.13632608,39775.0,39763.0,0.13632608]
[1610144392124,0.59812608,39775.0,39763.0,0.13632608]
[1610144392823,0.49730094,39769.0,39758.0,0.12759]
[1610144393024,0.13632608,39764.0,39758.0,0.12759]
[1610144394827,0.49730094,39769.0,39758.0,0.12759]
[1610144394828,0.13632608,39759.0,39758.0,0.12759]
[1610144395326,0.13632608,39759.0,39735.0,3.07582608]
[1610144395728,0.13632608,39759.0,39736.0,0.00028738]
[1610144396330,3.3252,39755.0,39736.0,0.00028738]
[1610144397044,0.49730094,39769.0,39736.0,0.00028738]
[1610144397045,0.4761,39742.0,39736.0,0.00028738]
[1610144397440,0.49730094,39769.0,39736.0,0.00028738]
[1610144397634,2.88,39748.0,39736.0,0.00028738]
[1610144398234,3.3627,39748.0,39736.0,0.00028738]
[1610144398440,0.49730094,39769.0,39736.0,0.00028738]
[1610144398637,2.8717,39739.0,39736.0,0.00028738]
[1610144399738,0.13632608,39742.0,39736.0,0.00028738]
[1610144400937,0.13632608,39737.0,39736.0,0.00028738]
[1610144404043,0.56632608,39737.0,39736.0,0.00028738]
[1610144406044,0.56632608,39737.0,39718.0,0.00028747]
[1610144406245,0.13632608,39737.0,39718.0,0.00028747]
[1610144406445,0.13632608,39737.0,39710.0,3.8806]
[1610144406745,0.13632608,39737.0,39719.0,0.11016748]
[1610144407045,0.09518,39740.0,39734.0,0.13632608]
[1610144407445,0.09518,39740.0,39735.0,0.00028748]
[1610144408146,0.09518,39740.0,39720.0,0.03105426]
[1610144408446,0.09518,39740.0,39719.0,0.10988]
[1610144408646,0.09518,39740.0,39721.0,0.00028731]
[1610144408946,0.09518,39740.0,39728.0,0.13632608]
[1610144410348,2.8534,39742.0,39728.0,0.13632608]
[1610144411049,0.13632608,39729.0,39728.0,0.13632608]
[1610144411649,0.13632608,39729.0,39728.0,0.1366134]
[1610144412950,0.13632608,39729.0,39728.0,0.00028732]
[1610144413149,0.13632608,39729.0,39728.0,0.1366134]
[1610144413451,0.13632608,39729.0,39728.0,0.13632608]
[1610144413750,0.13632608,39729.0,39728.0,0.13661342]
[1610144416451,0.13632608,39729.0,39728.0,0.1366134]
[1610144417452,0.13632608,39729.0,39728.0,0.00028732]
[1610144417653,0.13632608,39729.0,39728.0,0.03105782]
[1610144417854,0.13632608,39729.0,39728.0,0.0307705]
[1610144418053,0.13632608,39729.0,39720.0,0.0310564]
[1610144418252,0.13632608,39729.0,39728.0,0.03105819]
[1610144418553,0.13632608,39729.0,39721.0,0.03105813]
[1610144418754,3.335,39724.0,39719.0,0.10988]
[1610144418953,3.335,39724.0,39722.0,0.03105801]
[1610144419152,3.335,39724.0,39723.0,0.13632608]
[1610144419353,3.335,39724.0,39720.0,0.03105797]
[1610144419654,3.335,39724.0,39723.0,0.03105858]
[1610144419854,3.335,39724.0,39721.0,0.03105734]
[1610144420155,3.335,39724.0,39723.0,0.03105775]
[1610144420357,3.335,39724.0,39722.0,0.0310584]
[1610144420557,0.13632608,39725.0,39723.0,0.03106003]
[1610144421057,0.13632608,39725.0,39714.0,0.03106039]
[1610144421458,0.13632608,39725.0,39724.0,0.03106062]
[1610144421657,0.13632608,39725.0,39715.0,0.03106146]
[1610144421957,0.13632608,39725.0,39724.0,0.03106138]
[1610144422157,0.13632608,39725.0,39716.0,0.03106235]
[1610144422358,0.13632608,39725.0,39724.0,0.03106255]
[1610144422658,0.13632608,39725.0,39706.0,0.09260838]
[1610144422960,0.13632608,39725.0,39724.0,0.03106266]
[1610144423160,0.13632608,39725.0,39720.0,0.13632608]
[1610144423457,0.13632608,39725.0,39724.0,0.0002874]
[1610144423659,0.13632608,39725.0,39721.0,0.0002874]
[1610144423960,0.13632608,39725.0,39706.0,0.09260942]
[1610144424259,0.13632608,39725.0,39722.0,0.0002874]
[1610144424460,0.13632608,39725.0,39707.0,0.0002874]
[1610144424861,0.13632608,39725.0,39706.0,0.09260942]
[1610144425062,0.12604,39732.0,39712.0,0.13632608]
[1610144425260,3.8441,39739.0,39712.0,0.13632608]
[1610144425660,3.8441,39739.0,39713.0,0.03106441]
[1610144426764,0.1096,39740.0,39713.0,0.03106441]
[1610144427063,0.13632608,39714.0,39713.0,0.03106441]
[1610144427563,0.13632608,39714.0,39707.0,0.03106768]
[1610144427763,0.13632608,39714.0,39713.0,0.03106768]
[1610144427965,0.13632608,39714.0,39708.0,0.03106754]
[1610144428163,0.13632608,39714.0,39713.0,0.03106824]
[1610144428664,0.13632608,39714.0,39713.0,0.00028744]
[1610144428863,0.13632608,39714.0,39713.0,0.03106833]
[1610144429064,0.13632608,39714.0,39703.0,0.03106899]
[1610144429264,0.10564,39729.0,39713.0,0.03106947]
[1610144429465,0.10564,39729.0,39708.0,0.13632608]
[1610144429667,0.10564,39729.0,39704.0,0.03106889]
[1610144429966,0.10564,39729.0,39709.0,0.03078209]
[1610144430166,0.10564,39729.0,39704.0,0.09263435]
[1610144430365,0.10564,39729.0,39710.0,0.03106959]
[1610144430567,0.10564,39729.0,39705.0,0.03107174]
[1610144430968,0.10564,39729.0,39711.0,0.03107197]
[1610144431166,0.10564,39729.0,39704.0,0.06156417]
[1610144431167,0.10564,39729.0,39708.0,0.13632608]
[1610144431366,0.10564,39729.0,39712.0,0.03107212]
[1610144431566,0.10564,39729.0,39709.0,0.03107286]
[1610144432068,0.10564,39729.0,39703.0,0.0310736]
[1610144432270,3.8135,39730.0,39710.0,0.03107428]
[1610144432470,0.00706864,39752.0,39704.0,0.03107472]
[1610144432669,4.0993,39733.0,39711.0,0.0310743]
[1610144432968,4.0993,39733.0,39705.0,0.03107463]
[1610144432969,0.12484,39733.0,39705.0,0.03107463]
[1610144433175,4.1063,39728.0,39712.0,0.03107459]
[1610144433571,0.12484,39733.0,39706.0,0.03107398]
[1610144433773,0.12484,39733.0,39713.0,0.0310743]
[1610144433972,0.12484,39733.0,39707.0,0.03107457]
[1610144434373,0.12484,39733.0,39704.0,3.46682608]
[1610144434374,0.12484,39733.0,39714.0,0.03107408]
[1610144434574,0.12484,39733.0,39708.0,0.03107388]
[1610144434775,0.12484,39733.0,39715.0,0.03107479]
[1610144435174,0.13632608,39716.0,39709.0,0.03107473]
[1610144435374,0.23638608,39716.0,39705.0,0.06157275]
[1610144435575,0.23638608,39716.0,39710.0,0.03107536]
[1610144436074,0.23638608,39716.0,39711.0,0.0310752]
[1610144436774,0.23638608,39716.0,39705.0,0.03107524]
[1610144436976,0.23638608,39716.0,39712.0,0.00028752]
[1610144437175,0.23638608,39716.0,39706.0,0.03107579]
[1610144437377,0.23638608,39716.0,39713.0,0.00028752]
[1610144437778,0.23638608,39716.0,39705.0,0.03107625]
[1610144437978,0.23638608,39716.0,39714.0,0.00028752]
[1610144438178,0.23638608,39716.0,39706.0,0.00028752]
[1610144438579,0.23638608,39716.0,39696.0,0.09265304]
[1610144438777,0.23638608,39716.0,39707.0,0.0002875]
[1610144439079,0.23638608,39716.0,39697.0,0.03107536]
[1610144439278,0.13632608,39703.0,39697.0,0.13632608]
[1610144439478,0.13632608,39703.0,39698.0,0.03107463]
[1610144440279,0.13632608,39703.0,39699.0,0.03107608]
[1610144440679,0.13632608,39703.0,39698.0,0.03107543]
[1610144440882,0.13632608,39703.0,39700.0,0.03107589]
[1610144441179,0.13632608,39703.0,39699.0,0.0310765]
[1610144441379,0.13632608,39703.0,39697.0,0.13632608]
[1610144441380,0.13632608,39703.0,39701.0,0.03107568]
[1610144441781,0.13632608,39703.0,39700.0,0.03107538]
[1610144441979,0.13632608,39703.0,39702.0,0.03107571]
[1610144442280,0.13632608,39703.0,39697.0,0.13632608]
[1610144442281,0.13632608,39703.0,39701.0,0.03107685]
[1610144442480,0.13632608,39703.0,39702.0,0.0310767]
[1610144442980,0.13632608,39703.0,39698.0,0.03107636]
[1610144443179,0.13632608,39703.0,39702.0,0.03107633]
[1610144443379,3.1604,39729.0,39702.0,0.03107633]
[1610144443582,3.1604,39729.0,39698.0,0.03107608]
[1610144443780,3.1604,39729.0,39703.0,0.03107663]
[1610144443980,3.1604,39729.0,39699.0,0.03107674]
[1610144444281,3.1604,39729.0,39704.0,0.03107665]
[1610144444683,3.1604,39729.0,39700.0,0.03107748]
[1610144444882,3.1604,39729.0,39705.0,0.03107725]
[1610144445082,3.1604,39729.0,39701.0,0.03107717]
[1610144445282,0.13632608,39706.0,39697.0,0.13632608]
[1610144445785,0.13632608,39706.0,39698.0,0.03107696]
[1610144447283,0.09796,39719.0,39701.0,0.13632608]
[1610144447683,0.09796,39719.0,39702.0,0.0310768]
[1610144449285,0.13632608,39703.0,39702.0,0.0310768]
[1610144450286,0.13632608,39703.0,39702.0,0.03108309]
[1610144451487,0.09796,39719.0,39702.0,0.03108309]
[1610144451689,3.1604,39729.0,39702.0,0.03108309]
[1610144453388,3.1604,39729.0,39709.0,0.13632608]
[1610144453790,3.1604,39729.0,39710.0,0.0295013]
[1610144455290,0.13632608,39711.0,39710.0,0.0295013]
[1610144460196,0.08141,39719.0,39710.0,0.0295013]
[1610144460596,3.1604,39729.0,39696.0,0.09265422]
[1610144460997,0.12484,39733.0,39711.0,0.03107555]
[1610144461197,0.02092625,39737.0,39707.0,3.7779]
[1610144461405,0.00702131,39737.0,39712.0,0.03107581]
[1610144461800,0.00702578,39736.0,39710.0,0.13632608]
[1610144461997,0.12247578,39736.0,39713.0,0.03107517]
[1610144462200,0.12247578,39736.0,39711.0,0.03107529]
[1610144462501,0.11545,39736.0,39714.0,0.03107542]
[1610144462800,0.11545,39736.0,39712.0,0.0310751]
[1610144463001,0.11545,39736.0,39715.0,0.03107504]
[1610144463300,0.11545,39736.0,39713.0,0.03107514]
[1610144463504,0.13632608,39714.0,39710.0,0.13632608]
[1610144464100,0.13632608,39714.0,39711.0,0.03107686]
[1610144466406,0.12749,39720.0,39711.0,0.03107686]
[1610144467605,0.12749,39720.0,39719.0,0.13632608]
[1610144468105,0.12749,39720.0,39719.0,0.16740545]
[1610144468505,0.12749,39720.0,39719.0,0.16740457]
[1610144468705,0.11545,39736.0,39719.0,0.16740457]
[1610144468907,0.11545,39736.0,39719.0,0.1674056]
[1610144469208,0.0210135,39742.0,39720.0,0.03107925]
[1610144469409,0.13632608,39730.0,39727.0,0.13632608]
[1610144469706,0.10983,39730.0,39727.0,0.13632608]
[1610144469907,0.10983,39730.0,39728.0,0.03107543]
[1610144470607,0.10983,39730.0,39728.0,0.18496716]
[1610144470807,0.10983,39730.0,39729.0,1.5]
[1610144471207,0.08485,39759.0,39729.0,1.68492731]
[1610144471408,0.08485,39759.0,39758.0,0.13632608]
[1610144471709,0.13632608,39766.0,39758.0,0.13660307]
[1610144472308,0.13632608,39766.0,39759.0,0.00027697]
[1610144472908,0.49977049,39774.0,39759.0,0.00027697]
[1610144472909,0.00708583,39774.0,39759.0,0.00027697]
[1610144473210,0.41695218,39776.0,39761.0,3.611]
[1610144473410,0.00709233,39778.0,39775.0,0.13632608]
[1610144473610,0.00709244,39782.0,39762.0,0.00027688]
[1610144473810,0.00709244,39782.0,39776.0,0.00027684]
[1610144474110,0.13632608,39788.0,39763.0,0.00027679]
[1610144474311,0.13632608,39788.0,39777.0,0.00027679]
[1610144474713,0.13632608,39788.0,39764.0,0.00027676]
[1610144474912,0.25130608,39788.0,39778.0,0.00027676]
[1610144475109,0.25130608,39788.0,39765.0,0.00027676]
[1610144475611,0.11498,39788.0,39787.0,3.4944]
[1610144476109,0.11498,39788.0,39787.0,3.49467674]
[1610144476911,0.11498,39788.0,39787.0,3.4944]
[1610144477617,0.11498,39788.0,39787.0,4.9944]
[1610144478615,0.11498,39788.0,39787.0,3.4944]
[1610144478914,0.11498,39788.0,39787.0,4.9944]
[1610144479816,0.00711447,39822.0,39787.0,4.9944]
[1610144480117,0.00711447,39822.0,39786.0,0.13632608]
[1610144480316,0.08978,39822.0,39807.0,3.568]
[1610144481618,0.08978,39822.0,39821.0,0.13632608]
[1610144482019,0.08978,39822.0,39821.0,4.02572608]
[1610144483522,0.22610608,39822.0,39821.0,4.02572608]
[1610144488429,0.08978,39822.0,39821.0,4.02572608]
[1610144488830,0.03,39845.0,39821.0,4.02572608]
[1610144489530,0.13632608,39829.0,39825.0,0.13632608]
[1610144489930,0.23919608,39829.0,39825.0,0.13632608]
[1610144492035,0.10287,39829.0,39825.0,0.13632608]
[1610144493338,0.10287,39829.0,39828.0,3.2523]
[1610144495141,0.13632608,39840.0,39828.0,3.2523]
[1610144495646,0.13632608,39829.0,39828.0,3.2523]
[1610144496042,0.25593608,39829.0,39828.0,2.99172211]
[1610144498247,0.25593608,39829.0,39785.0,0.10051]
[1610144498548,0.25593608,39829.0,39744.0,1.5]
[1610144498747,0.25593608,39829.0,39788.0,0.07757]
[1610144498948,0.25593608,39829.0,39803.0,3.4044]
[1610144499547,0.11961,39829.0,39816.0,0.13632608]
[1610144499748,0.11961,39829.0,39819.0,0.4049]
[1610144501148,0.03,39845.0,39819.0,0.4049]
[1610144501548,0.13632608,39820.0,39819.0,0.4049]
[1610144501948,0.26374608,39820.0,39819.0,0.4049]
[1610144502750,0.26374608,39820.0,39816.0,0.13632608]
[1610144504353,0.12742,39820.0,39819.0,2.9014]
[1610144506954,0.13632608,39832.0,39819.0,2.9014]
[1610144507755,0.13632608,39832.0,39790.0,5.3169]
[1610144507756,0.13632608,39832.0,39831.0,0.71372608]
[1610144508959,0.13632608,39832.0,39831.0,0.5774]
[1610144512763,0.26105608,39832.0,39831.0,0.5774]
[1610144517770,0.26105608,39832.0,39831.0,0.71372608]
[1610144525177,0.12473,39832.0,39831.0,0.71372608]
[1610144525478,0.03,39845.0,39831.0,0.71372608]
[1610144525877,0.13632608,39844.0,39831.0,0.71372608]
[1610144526078,0.23977608,39844.0,39831.0,0.71372608]
[1610144526979,0.23977608,39844.0,39832.0,0.00026977]
[1610144527779,0.13632608,39838.0,39832.0,0.00026977]
[1610144528381,0.13632608,39838.0,39831.0,0.71372608]
[1610144529480,0.10345,39844.0,39831.0,0.13632608]
[1610144529881,0.10345,39844.0,39824.0,0.09716]
[1610144529882,0.10345,39844.0,39843.0,0.13632608]
[1610144530080,0.10345,39844.0,39843.0,3.26702608]
[1610144531282,0.13632608,39845.0,39843.0,3.26702608]
[1610144531789,0.13632608,39845.0,39844.0,0.00026336]
[1610144531989,0.00727503,39852.0,39844.0,0.00026336]
[1610144532302,0.00727503,39852.0,39851.0,3.8712]
[1610144532601,0.00730545,39855.0,39851.0,3.8712]
[1610144532803,0.00730545,39855.0,39851.0,3.87146328]
[1610144532987,0.02180926,39862.0,39852.0,0.00026328]
[1610144533391,0.00731959,39863.0,39852.0,0.00026328]
[1610144533790,0.00731959,39863.0,39862.0,0.13632608]
[1610144533990,0.00731959,39863.0,39862.0,0.72162608]
[1610144534194,0.51729083,39864.0,39862.0,0.72188933]
[1610144534592,0.4454685,39863.0,39862.0,0.72162608]
[1610144534996,0.00733516,39863.0,39862.0,0.72188932]
[1610144535292,0.00733572,39865.0,39862.0,0.72188932]
[1610144535491,0.00733572,39865.0,39862.0,0.13658932]
[1610144535691,0.00733572,39865.0,39864.0,3.3019]
[1610144536099,0.02190688,39868.0,39864.0,3.3019]
[1610144536299,0.02190688,39868.0,39864.0,3.30216322]
[1610144536493,0.09176078,39871.0,39864.0,3.3019]
[1610144537293,0.08873,39871.0,39864.0,3.3019]
[1610144537792,0.08873,39871.0,39870.0,0.13632608]
[1610144539897,0.00303724,39878.0,39870.0,0.13632608]
[1610144540295,0.00303724,39878.0,39877.0,2.889]
[1610144540498,0.55180295,39911.0,39877.0,2.889]
[1610144540499,0.00303631,39881.0,39877.0,2.889]
[1610144541796,0.00303205,39878.0,39877.0,2.889]
[1610144541996,0.12648205,39878.0,39877.0,2.889]
[1610144542302,0.12345,39878.0,39877.0,2.889]
[1610144543198,0.13384088,39878.0,39877.0,2.889]
[1610144543500,0.12345,39878.0,39877.0,2.889]
[1610144543900,0.12345,39878.0,39877.0,3.02532608]
[1610144547302,0.13632608,39885.0,39877.0,3.02532608]
[1610144547901,0.11539,39886.0,39884.0,0.13632608]
[1610144550607,0.02195881,39898.0,39897.0,3.3501]
[1610144550804,0.5515169,39906.0,39897.0,3.3501]
[1610144550805,0.00737164,39902.0,39897.0,3.3501]
[1610144551207,0.00738673,39907.0,39897.0,3.2118009]
[1610144551610,0.30420022,39910.0,39897.0,3.2118009]
[1610144551906,0.2822,39910.0,39909.0,0.13632608]
[1610144552106,0.2822,39910.0,39909.0,0.59342608]
[1610144553609,0.2822,39910.0,39909.0,0.13632608]
[1610144557113,0.2822,39910.0,39909.0,1.63632608]
[1610144562416,0.02,39918.0,39915.0,7.1885]
[1610144562619,0.02,39918.0,39909.0,1.63632608]
[1610144564117,0.02,39918.0,39917.0,1.63632608]
[1610144564317,0.02,39918.0,39917.0,1.72787608]
[1610144565418,0.52495377,40014.0,39917.0,1.72787608]
[1610144565419,0.00744373,40015.0,39917.0,1.72787608]
[1610144565828,0.00743491,40017.0,39917.0,1.72787608]
[1610144566017,0.13632608,40012.0,39947.0,1.63632608]
[1610144566220,0.13632608,40012.0,39947.0,1.73614608]
[1610144567024,0.13632608,40012.0,39947.0,0.23614608]
[1610144568123,0.13632608,40005.0,39947.0,0.23614608]
[1610144569123,0.06862188,40031.0,39947.0,0.23614608]
[1610144569324,0.01474087,40032.0,39947.0,0.23614608]
[1610144569325,0.06118177,40032.0,39947.0,0.23614608]
[1610144569823,0.00743816,40033.0,39947.0,7.46074608]
[1610144570023,0.13632608,40006.0,39947.0,0.23614608]
[1610144570326,0.06862219,40034.0,39947.0,0.23614608]
[1610144570526,0.06118096,40034.0,39947.0,0.23614608]
[1610144570723,0.0611771,40035.0,39947.0,0.23614608]
[1610144570925,0.00743679,40035.0,39947.0,0.23614608]
[1610144571527,0.09663,39992.0,39947.0,0.23614608]
[1610144572028,0.00679427,39918.0,39917.0,0.09155]
[1610144572628,0.09663,39992.0,39917.0,3.9845]
[1610144572831,0.09663,39992.0,39932.0,0.00679427]
[1610144573933,0.09663,39992.0,39974.0,4.0233]
[1610144574131,0.09663,39992.0,39991.0,0.13632608]
[1610144574334,0.09663,39992.0,39991.0,4.05772608]
[1610144576836,0.0685938,40048.0,39991.0,4.05772608]
[1610144576837,0.00743254,40047.0,39991.0,0.13632608]
[1610144577135,0.00743254,40047.0,40025.0,3.3701]
[1610144577336,0.02168752,40046.0,40025.0,3.3701]
[1610144577537,0.11293752,40046.0,40025.0,3.36857244]
[1610144577738,0.11263171,40046.0,40025.0,3.36857244]
[1610144577939,0.09125,40046.0,40025.0,3.36857244]
[1610144578238,0.09125,40046.0,40045.0,0.13632608]
[1610144578437,0.09125,40046.0,40045.0,3.7552]
[1610144578637,0.11293058,40046.0,40045.0,3.67884082]
[1610144578839,0.11293057,40046.0,40045.0,3.67884082]
[1610144580138,0.11293057,40046.0,40045.0,3.8151669]
[1610144582842,0.09125,40046.0,40045.0,3.8151669]
[1610144583242,0.13632608,40062.0,40045.0,3.8151669]
[1610144583441,0.12215,40046.0,40045.0,3.8151669]
[1610144583642,0.12215,40046.0,40045.0,0.13632608]
[1610144583942,0.12215,40046.0,40045.0,4.17852608]
[1610144588548,0.07971,40046.0,40045.0,4.17852608]
[1610144593564,0.13632608,40060.0,40045.0,4.17852608]
[1610144594059,0.13632608,40060.0,40059.0,0.13632608]
[1610144594259,0.13632608,40060.0,40059.0,0.63662608]
[1610144595762,0.15267027,40096.0,40059.0,0.63662608]
[1610144596064,0.15267027,40096.0,40059.0,0.13632608]
[1610144596363,0.02170163,40098.0,40067.0,0.13632608]
[1610144596562,0.02170166,40095.0,40079.0,3.2678]
[1610144596762,0.08516,40095.0,40079.0,1.63992]
[1610144597165,0.02170028,40094.0,40079.0,1.63992]
[1610144597466,0.02170028,40094.0,40079.0,1.6383947]
[1610144598267,0.13632608,40080.0,40079.0,1.6383947]
[1610144598467,0.25619608,40080.0,40079.0,1.6383947]
[1610144600170,0.25619608,40080.0,40079.0,1.77472078]
[1610144600869,0.13632608,40080.0,40079.0,1.77472078]
[1610144602271,0.13632608,40080.0,40079.0,0.13632608]
[1610144603373,0.13632608,40080.0,40076.0,3.0468]
[1610144607976,0.13632608,40080.0,40073.0,0.13632608]
[1610144608177,0.13632608,40080.0,40079.0,4.0591]
[1610144608376,0.03,40086.0,40079.0,4.0591]
[1610144610279,0.13632608,40080.0,40079.0,4.19542608]
[1610144610578,0.03,40086.0,40079.0,4.19542608]
[1610144612280,0.03,40086.0,40085.0,0.13632608]
[1610144612481,0.03,40086.0,40085.0,0.59262608]
[1610144614585,0.0231,40086.0,40085.0,0.59262608]
[1610144633911,0.0231,40086.0,40085.0,2.09262608]
[1610144635015,0.0231,40086.0,40085.0,0.59262608]
[1610144635613,0.31126657,40094.0,40085.0,0.59262608]
[1610144636415,0.31126657,40094.0,40093.0,0.60512608]
[1610144636916,0.31126657,40094.0,40093.0,0.22757608]
[1610144637317,0.31126657,40094.0,40093.0,0.22785703]
[1610144637617,0.31126657,40094.0,40093.0,0.22757608]
[1610144639120,0.31126657,40094.0,40093.0,0.22785708]
[1610144642525,0.31126657,40094.0,40093.0,3.98895708]
[1610144643825,0.31126657,40094.0,40093.0,0.22785708]
[1610144644225,0.31126657,40094.0,40093.0,0.22757608]
[1610144644425,0.31126657,40094.0,40093.0,0.22785713]
[1610144644827,0.31126657,40094.0,40093.0,0.09153105]
[1610144645537,4.21626657,40094.0,40093.0,0.09153105]
[1610144646540,4.21626657,40094.0,40093.0,0.00028105]
[1610144647131,0.31126657,40094.0,40079.0,0.08454]
[1610144647329,0.31126657,40094.0,40070.0,0.0995]
[1610144647330,3.4839,40080.0,40070.0,0.0995]
[1610144647648,0.10028,40082.0,40044.0,0.13632608]
[1610144647848,3.6122,40069.0,40044.0,0.11062]
[1610144648242,3.6122,40069.0,40045.0,0.00028143]
[1610144648431,0.13632608,40046.0,40045.0,0.00028143]
[1610144649243,3.64982608,40046.0,40045.0,0.00028143]
[1610144650132,3.64982608,40046.0,40022.0,0.00028177]
[1610144650330,3.64982608,40046.0,40021.0,4.158]
[1610144650533,0.13632608,40032.0,40021.0,4.158]
[1610144650732,0.13632608,40032.0,40016.0,0.13632608]
[1610144650935,3.24672608,40032.0,40016.0,0.13632608]
[1610144653134,3.24672608,40032.0,40003.0,3.2071]
[1610144653436,3.3814,40024.0,39981.0,2.34660853]
[1610144653634,3.3814,40024.0,39980.0,2.35064446]
[1610144654035,3.3814,40024.0,39979.0,2.35802252]
[1610144654234,3.3814,40024.0,39981.0,0.00028189]
[1610144654535,0.13632608,40013.0,40004.0,0.13632608]
[1610144655735,0.5551,40011.0,40004.0,0.13632608]
[1610144655939,0.5551,40011.0,39981.0,0.10998]
[1610144656536,0.13632608,40005.0,39987.0,0.13632608]
[1610144657437,0.5551,40011.0,39987.0,0.13632608]
[1610144658441,0.13632608,40004.0,39987.0,0.13632608]
[1610144662342,0.10043,40041.0,39987.0,0.13632608]
[1610144662643,0.13632608,40016.0,40002.0,0.13632608]
[1610144666646,0.13632608,40016.0,40013.0,0.13632608]
[1610144666945,0.13632608,40016.0,40013.0,0.24192608]
[1610144668047,0.10043,40041.0,40013.0,0.24192608]
[1610144668348,0.03,40042.0,40027.0,3.6173]
[1610144668548,0.13632608,40036.0,40027.0,3.75362608]
[1610144672554,0.13632608,40028.0,40027.0,3.75362608]
[1610144673454,0.13632608,40028.0,40013.0,0.1056]
[1610144673754,0.13632608,40028.0,40022.0,3.4828]
[1610144674653,0.13632608,40023.0,40022.0,3.4828]
[1610144676756,0.16632608,40023.0,40022.0,3.4828]
[1610144677657,0.03,40023.0,40022.0,3.4828]
[1610144678563,0.03,40023.0,40022.0,3.4628]
[1610144682667,0.03,40023.0,40022.0,3.59912608]
[1610144695379,0.03,40023.0,40022.0,3.59940793]
[1610144695579,0.03,40023.0,40022.0,3.59912608]
[1610144695880,0.03,40023.0,40022.0,3.59940793]
[1610144696280,0.03,40023.0,40022.0,3.62995284]